[Event "*** SCC Grand Prix: Titled Tuesday Blitz"]
[Site "Chess.com"]
[Date "2020.06.02"]
[Round "10"]
[White "maciek_92"]
[Black "doons21"]
[Result "1-0"]
[WhiteElo "2774"]
[BlackElo "2486"]
[TimeControl "180+1"]
[EndTime "11:59:41 PDT"]
[Termination "maciek_92 won on time"]

1. e4 {[%clk 0:03:00.9]} 1... e6 {[%clk 0:02:58.9]} 2. d4 {[%clk 0:03:01]} 2...
d5 {[%clk 0:02:59]} 3. Nc3 {[%clk 0:03:01.7]} 3... Bb4 {[%clk 0:02:58.4]} 4. e5
{[%clk 0:03:02.3]} 4... c5 {[%clk 0:02:57.4]} 5. a3 {[%clk 0:03:02.8]} 5...
Bxc3+ {[%clk 0:02:57.2]} 6. bxc3 {[%clk 0:03:03.7]} 6... Ne7 {[%clk 0:02:57.2]}
7. h4 {[%clk 0:03:03.4]} 7... Qa5 {[%clk 0:02:55.3]} 8. Bd2 {[%clk 0:03:03]}
8... Qa4 {[%clk 0:02:55.7]} 9. h5 {[%clk 0:03:03]} 9... h6 {[%clk 0:02:53.5]}
10. Nf3 {[%clk 0:03:01.8]} 10... b6 {[%clk 0:02:50.9]} 11. Bd3 {[%clk
0:02:59.6]} 11... Ba6 {[%clk 0:02:49]} 12. Rh4 {[%clk 0:02:56.4]} 12... Bxd3
{[%clk 0:02:30]} 13. cxd3 {[%clk 0:02:57.3]} 13... Qxd1+ {[%clk 0:02:29.9]} 14.
Kxd1 {[%clk 0:02:57.5]} 14... Nbc6 {[%clk 0:02:25.2]} 15. dxc5 {[%clk
0:02:56.9]} 15... bxc5 {[%clk 0:02:23.2]} 16. Rb1 {[%clk 0:02:56.3]} 16... O-O
{[%clk 0:02:15.5]} 17. Rb5 {[%clk 0:02:55.9]} 17... Rfb8 {[%clk 0:02:05.9]} 18.
Rxc5 {[%clk 0:02:55.9]} 18... Rb1+ {[%clk 0:02:04.9]} 19. Kc2 {[%clk 0:02:53.9]}
19... Rab8 {[%clk 0:02:03.6]} 20. Bc1 {[%clk 0:02:53]} 20... Ra1 {[%clk
0:02:00.5]} 21. Rb4 {[%clk 0:02:16.6]} 21... Nxb4+ {[%clk 0:00:53.1]} 22. axb4
{[%clk 0:02:17.5]} 22... Ra6 {[%clk 0:00:49.6]} 23. Nd4 {[%clk 0:01:47.4]} 23...
Rc8 {[%clk 0:00:45.7]} 24. Rxc8+ {[%clk 0:01:40.5]} 24... Nxc8 {[%clk
0:00:44.9]} 25. Bb2 {[%clk 0:01:41]} 25... Rb6 {[%clk 0:00:43.5]} 26. g4 {[%clk
0:01:37.5]} 26... f6 {[%clk 0:00:39.1]} 27. f4 {[%clk 0:01:26.5]} 27... Kf7
{[%clk 0:00:37.8]} 28. Bc1 {[%clk 0:01:11.8]} 28... fxe5 {[%clk 0:00:35.9]} 29.
fxe5 {[%clk 0:01:11.9]} 29... Ne7 {[%clk 0:00:25.9]} 30. Nb3 {[%clk 0:01:07.5]}
30... Rb8 {[%clk 0:00:21.8]} 31. Nc5 {[%clk 0:01:02.7]} 31... g6 {[%clk
0:00:22]} 32. Bxh6 {[%clk 0:00:58.2]} 32... gxh5 {[%clk 0:00:21.4]} 33. gxh5
{[%clk 0:00:57.6]} 33... Rh8 {[%clk 0:00:22.3]} 34. Be3 {[%clk 0:00:48.1]} 34...
Rxh5 {[%clk 0:00:23.2]} 35. Nd7 {[%clk 0:00:46.4]} 35... a6 {[%clk 0:00:20.3]}
36. Bc5 {[%clk 0:00:44.7]} 36... Nc6 {[%clk 0:00:19.1]} 37. d4 {[%clk
0:00:44.1]} 37... Rh2+ {[%clk 0:00:18.9]} 38. Kb3 {[%clk 0:00:44.2]} 38... Rh1
{[%clk 0:00:16.3]} 39. Bb6 {[%clk 0:00:41.5]} 39... Rb1+ {[%clk 0:00:16.1]} 40.
Ka2 {[%clk 0:00:40.7]} 40... Rc1 {[%clk 0:00:16.4]} 41. Kb2 {[%clk 0:00:40.6]}
41... Re1 {[%clk 0:00:16.8]} 42. Nc5 {[%clk 0:00:41.2]} 42... Re2+ {[%clk
0:00:15.1]} 43. Kb3 {[%clk 0:00:41.2]} 43... Nb8 {[%clk 0:00:11.9]} 44. Bc7
{[%clk 0:00:40.2]} 44... Nc6 {[%clk 0:00:11.5]} 45. Nxa6 {[%clk 0:00:40.1]}
45... Ke7 {[%clk 0:00:12.4]} 46. b5 {[%clk 0:00:28.9]} 46... Nd8 {[%clk
0:00:12.1]} 47. Nc5 {[%clk 0:00:27.4]} 47... Re1 {[%clk 0:00:10.6]} 48. Kb2
{[%clk 0:00:20.6]} 48... Re2+ {[%clk 0:00:09.8]} 49. Ka3 {[%clk 0:00:20]} 49...
Re1 {[%clk 0:00:10.7]} 50. Nb3 {[%clk 0:00:16.7]} 50... Nb7 {[%clk 0:00:10]} 51.
Bb6 {[%clk 0:00:12.6]} 51... Kd7 {[%clk 0:00:10.2]} 52. Bc5 {[%clk 0:00:12.8]}
52... Kc7 {[%clk 0:00:09.4]} 53. Kb4 {[%clk 0:00:12.1]} 53... Rb1 {[%clk
0:00:08.8]} 54. c4 {[%clk 0:00:12]} 54... dxc4 {[%clk 0:00:07.5]} 55. Kxc4
{[%clk 0:00:12.9]} 55... Rb2 {[%clk 0:00:07.4]} 56. Kc3 {[%clk 0:00:12]} 56...
Rb1 {[%clk 0:00:07]} 57. Kc4 {[%clk 0:00:10.5]} 57... Rb2 {[%clk 0:00:06.8]} 58.
Bb4 {[%clk 0:00:10.6]} 58... Rc2+ {[%clk 0:00:06.7]} 59. Bc3 {[%clk 0:00:10]}
59... Rh2 {[%clk 0:00:04.8]} 60. Nc5 {[%clk 0:00:09.9]} 60... Rh6 {[%clk
0:00:02.7]} 61. Bb4 {[%clk 0:00:05.9]} 61... Kb6 {[%clk 0:00:02.1]} 62. Nd7+
{[%clk 0:00:05.3]} 62... Kc7 {[%clk 0:00:02.3]} 63. Nf6 {[%clk 0:00:04.6]} 63...
Rh1 {[%clk 0:00:02.6]} 64. Ne8+ {[%clk 0:00:04.2]} 1-0

[Event "*** SCC Grand Prix: Titled Tuesday Blitz"]
[Site "Chess.com"]
[Date "2020.06.02"]
[Round "10"]
[White "Iskusnyh"]
[Black "Walter_White_Poland"]
[Result "1-0"]
[WhiteElo "2521"]
[BlackElo "2151"]
[TimeControl "180+1"]
[EndTime "11:59:42 PDT"]
[Termination "Iskusnyh won on time"]

1. d4 {[%clk 0:03:00.9]} 1... Nf6 {[%clk 0:02:58.5]} 2. c4 {[%clk 0:03:00.1]}
2... e6 {[%clk 0:02:58.3]} 3. g3 {[%clk 0:03:00]} 3... c5 {[%clk 0:02:58.1]} 4.
Nf3 {[%clk 0:02:59.2]} 4... cxd4 {[%clk 0:02:57.9]} 5. Nxd4 {[%clk 0:02:59.2]}
5... Nc6 {[%clk 0:02:58]} 6. Bg2 {[%clk 0:02:58.3]} 6... Qb6 {[%clk 0:02:56.3]}
7. Nb3 {[%clk 0:02:55.6]} 7... d5 {[%clk 0:02:54.9]} 8. cxd5 {[%clk 0:02:52.2]}
8... Nxd5 {[%clk 0:02:55]} 9. O-O {[%clk 0:02:47.3]} 9... Be7 {[%clk 0:02:52.2]}
10. Nc3 {[%clk 0:02:46.5]} 10... Nxc3 {[%clk 0:02:46.7]} 11. bxc3 {[%clk
0:02:45.9]} 11... O-O {[%clk 0:02:46.1]} 12. Nd4 {[%clk 0:02:20.8]} 12... Rd8
{[%clk 0:02:42.1]} 13. Be3 {[%clk 0:02:14.6]} 13... Qa6 {[%clk 0:02:07.3]} 14.
Qc2 {[%clk 0:01:17.2]} 14... Nxd4 {[%clk 0:01:58.5]} 15. cxd4 {[%clk 0:01:16.1]}
15... Bd7 {[%clk 0:01:53.8]} 16. Rab1 {[%clk 0:01:12]} 16... Rac8 {[%clk
0:01:21.3]} 17. Qb2 {[%clk 0:01:11.6]} 17... b6 {[%clk 0:01:16.1]} 18. Rfd1
{[%clk 0:00:33]} 18... Bf6 {[%clk 0:01:07.8]} 19. Rbc1 {[%clk 0:00:29.2]} 19...
h6 {[%clk 0:01:05.3]} 20. Be4 {[%clk 0:00:28.2]} 20... Bb5 {[%clk 0:00:58.2]}
21. Bf3 {[%clk 0:00:26.5]} 21... Rxc1 {[%clk 0:00:54]} 22. Rxc1 {[%clk
0:00:26.1]} 22... Bc4 {[%clk 0:00:50.8]} 23. Qc2 {[%clk 0:00:22.8]} 23... Bd5
{[%clk 0:00:41.3]} 24. Bxd5 {[%clk 0:00:21.6]} 24... Rxd5 {[%clk 0:00:41.1]} 25.
Qc8+ {[%clk 0:00:21]} 25... Qxc8 {[%clk 0:00:41.2]} 26. Rxc8+ {[%clk 0:00:21.5]}
26... Kh7 {[%clk 0:00:41.9]} 27. a4 {[%clk 0:00:19.4]} 27... Bxd4 {[%clk
0:00:38.4]} 28. Rc7 {[%clk 0:00:16]} 28... Bxe3 {[%clk 0:00:34.6]} 29. fxe3
{[%clk 0:00:16.3]} 29... Ra5 {[%clk 0:00:34.1]} 30. Rc4 {[%clk 0:00:16.6]} 30...
Kg6 {[%clk 0:00:14.5]} 31. Kf2 {[%clk 0:00:16.2]} 31... Kf6 {[%clk 0:00:14.2]}
32. Kf3 {[%clk 0:00:16.2]} 32... b5 {[%clk 0:00:12.3]} 33. axb5 {[%clk
0:00:14.6]} 33... Rxb5 {[%clk 0:00:12.6]} 34. Ra4 {[%clk 0:00:15.3]} 34... a5
{[%clk 0:00:12.5]} 35. g4 {[%clk 0:00:15.7]} 35... h5 {[%clk 0:00:12.1]} 36. h3
{[%clk 0:00:15.3]} 36... g6 {[%clk 0:00:06.7]} 37. Rf4+ {[%clk 0:00:13.9]} 37...
Kg7 {[%clk 0:00:06.1]} 38. Rc4 {[%clk 0:00:13.8]} 38... Rb4 {[%clk 0:00:05.4]}
39. Rc5 {[%clk 0:00:14.1]} 39... hxg4+ {[%clk 0:00:04.9]} 40. hxg4 {[%clk
0:00:14.4]} 40... Ra4 {[%clk 0:00:04]} 41. Rb5 {[%clk 0:00:14.1]} 41... Ra1
{[%clk 0:00:03.9]} 42. g5 {[%clk 0:00:13.8]} 42... a4 {[%clk 0:00:03.8]} 43. e4
{[%clk 0:00:13.8]} 43... a3 {[%clk 0:00:03.1]} 44. Ra5 {[%clk 0:00:13.9]} 44...
a2 {[%clk 0:00:01.6]} 45. Ke3 {[%clk 0:00:13.8]} 45... Rg1 {[%clk 0:00:01.3]}
46. Rxa2 {[%clk 0:00:13.3]} 46... Rxg5 {[%clk 0:00:01.4]} 47. Kf4 {[%clk
0:00:13.7]} 47... Rh5 {[%clk 0:00:01.7]} 48. Ra7 {[%clk 0:00:13.2]} 48... Rh4+
{[%clk 0:00:02.1]} 49. Kf3 {[%clk 0:00:13.1]} 49... Rh5 {[%clk 0:00:02.5]} 50.
Kf4 {[%clk 0:00:12.9]} 50... Rb5 {[%clk 0:00:02.9]} 51. e5 {[%clk 0:00:12.5]}
51... Rc5 {[%clk 0:00:03.1]} 52. e3 {[%clk 0:00:12.6]} 52... Rb5 {[%clk
0:00:03.3]} 53. Rc7 {[%clk 0:00:11.9]} 53... Ra5 {[%clk 0:00:03.5]} 54. Rd7
{[%clk 0:00:12]} 54... Rb5 {[%clk 0:00:03.6]} 55. Rd1 {[%clk 0:00:11.2]} 55...
Rb4+ {[%clk 0:00:03.9]} 56. e4 {[%clk 0:00:10.6]} 56... Rb3 {[%clk 0:00:03.9]}
57. Rf1 {[%clk 0:00:10]} 57... Rb2 {[%clk 0:00:04.1]} 58. Rf3 {[%clk 0:00:09.7]}
58... Ra2 {[%clk 0:00:04.1]} 59. Re3 {[%clk 0:00:09.7]} 59... Ra1 {[%clk
0:00:04.3]} 60. Rf3 {[%clk 0:00:09.6]} 60... Rg1 {[%clk 0:00:04.2]} 61. Rf2
{[%clk 0:00:08.9]} 61... g5+ {[%clk 0:00:04]} 62. Kf3 {[%clk 0:00:08.6]} 62...
Rc1 {[%clk 0:00:03]} 63. Kg4 {[%clk 0:00:08.1]} 63... Rg1+ {[%clk 0:00:01.7]}
64. Kh5 {[%clk 0:00:07.8]} 1-0

[Event "*** SCC Grand Prix: Titled Tuesday Blitz"]
[Site "Chess.com"]
[Date "2020.06.02"]
[Round "10"]
[White "Norival"]
[Black "crazy_but_lazy"]
[Result "1-0"]
[WhiteElo "2660"]
[BlackElo "2430"]
[TimeControl "180+1"]
[EndTime "11:59:46 PDT"]
[Termination "Norival won by checkmate"]

1. d4 {[%clk 0:03:00.9]} 1... d5 {[%clk 0:02:57]} 2. Nf3 {[%clk 0:03:00.8]} 2...
Nf6 {[%clk 0:02:50.2]} 3. Bf4 {[%clk 0:03:00.5]} 3... c5 {[%clk 0:02:46.4]} 4.
e3 {[%clk 0:03:00.5]} 4... Nc6 {[%clk 0:02:46.4]} 5. c3 {[%clk 0:03:00.8]} 5...
e6 {[%clk 0:02:35]} 6. Nbd2 {[%clk 0:02:58.7]} 6... cxd4 {[%clk 0:02:33.9]} 7.
exd4 {[%clk 0:02:58.5]} 7... Nh5 {[%clk 0:02:33.6]} 8. Bg3 {[%clk 0:02:56.2]}
8... g6 {[%clk 0:02:23.9]} 9. Bd3 {[%clk 0:02:47.7]} 9... Bg7 {[%clk 0:02:22.7]}
10. Bh4 {[%clk 0:02:45.6]} 10... Qb6 {[%clk 0:02:10.3]} 11. Qb3 {[%clk 0:02:45]}
11... Nf4 {[%clk 0:01:54.6]} 12. Bf1 {[%clk 0:02:44.2]} 12... Qxb3 {[%clk
0:01:52.5]} 13. axb3 {[%clk 0:02:43]} 13... O-O {[%clk 0:01:50.7]} 14. Bg3
{[%clk 0:02:22.1]} 14... Nh5 {[%clk 0:01:49.9]} 15. Bd6 {[%clk 0:02:19.4]} 15...
Re8 {[%clk 0:01:47.2]} 16. Bb5 {[%clk 0:02:13]} 16... Bd7 {[%clk 0:01:37.8]} 17.
O-O {[%clk 0:02:10.6]} 17... a6 {[%clk 0:01:33.8]} 18. Bxc6 {[%clk 0:02:07.4]}
18... Bxc6 {[%clk 0:01:29]} 19. Rfe1 {[%clk 0:02:07.4]} 19... Nf6 {[%clk
0:01:23.1]} 20. Ne5 {[%clk 0:02:01.7]} 20... Rac8 {[%clk 0:01:23.1]} 21. b4
{[%clk 0:01:59.7]} 21... Bb5 {[%clk 0:01:17.7]} 22. f3 {[%clk 0:01:47.9]} 22...
b6 {[%clk 0:01:03.7]} 23. h3 {[%clk 0:01:39.6]} 23... Red8 {[%clk 0:00:58.1]}
24. Be7 {[%clk 0:01:39.6]} 24... Re8 {[%clk 0:00:58.7]} 25. Bxf6 {[%clk
0:01:39.4]} 25... Bxf6 {[%clk 0:00:59.6]} 26. Kf2 {[%clk 0:01:35.5]} 26... Bg7
{[%clk 0:00:51.4]} 27. f4 {[%clk 0:01:20.4]} 27... f6 {[%clk 0:00:47.3]} 28.
Nef3 {[%clk 0:01:20.6]} 28... Kf7 {[%clk 0:00:44.8]} 29. Re3 {[%clk 0:01:20.2]}
29... Ra8 {[%clk 0:00:41]} 30. Nb3 {[%clk 0:01:14.6]} 30... Bf8 {[%clk
0:00:38.9]} 31. g3 {[%clk 0:01:12.1]} 31... Bd6 {[%clk 0:00:37.8]} 32. Ne1
{[%clk 0:01:08.3]} 32... Ra7 {[%clk 0:00:35.8]} 33. Nc2 {[%clk 0:01:06]} 33...
Rea8 {[%clk 0:00:33.6]} 34. Na3 {[%clk 0:01:06.1]} 34... Bd7 {[%clk 0:00:29.2]}
35. Rb1 {[%clk 0:00:58.5]} 35... a5 {[%clk 0:00:20]} 36. bxa5 {[%clk 0:00:56.6]}
36... bxa5 {[%clk 0:00:19.5]} 37. Nc5 {[%clk 0:00:56.6]} 37... Bxc5 {[%clk
0:00:15.4]} 38. dxc5 {[%clk 0:00:57.5]} 38... Rb8 {[%clk 0:00:15.6]} 39. b4
{[%clk 0:00:55.8]} 39... Rab7 {[%clk 0:00:13.3]} 40. Nc2 {[%clk 0:00:52.8]}
40... Ba4 {[%clk 0:00:13.8]} 41. Nd4 {[%clk 0:00:52.8]} 41... axb4 {[%clk
0:00:13.2]} 42. Nxe6 {[%clk 0:00:49.2]} 42... Re8 {[%clk 0:00:06.2]} 43. Nd4
{[%clk 0:00:47.2]} 43... Rxe3 {[%clk 0:00:03.2]} 44. Kxe3 {[%clk 0:00:48.1]}
44... b3 {[%clk 0:00:03.8]} 45. c6 {[%clk 0:00:44.4]} 45... Rc7 {[%clk
0:00:03.3]} 46. Kd2 {[%clk 0:00:42.4]} 46... Bxc6 {[%clk 0:00:03.4]} 47. Rxb3
{[%clk 0:00:42.1]} 47... Bd7 {[%clk 0:00:04.1]} 48. h4 {[%clk 0:00:41.9]} 48...
h6 {[%clk 0:00:04.4]} 49. Ra3 {[%clk 0:00:37.9]} 49... Rb7 {[%clk 0:00:04.1]}
50. Kc2 {[%clk 0:00:32.7]} 50... g5 {[%clk 0:00:04]} 51. hxg5 {[%clk 0:00:31.5]}
51... hxg5 {[%clk 0:00:04.3]} 52. Ra5 {[%clk 0:00:29.9]} 52... gxf4 {[%clk
0:00:04]} 53. gxf4 {[%clk 0:00:30.8]} 53... Be6 {[%clk 0:00:02]} 54. f5 {[%clk
0:00:31.2]} 54... Bd7 {[%clk 0:00:02.6]} 55. Rxd5 {[%clk 0:00:30.9]} 55... Ke7
{[%clk 0:00:03.2]} 56. Kd3 {[%clk 0:00:29.4]} 56... Ra7 {[%clk 0:00:03.5]} 57.
Rc5 {[%clk 0:00:27.3]} 57... Ra1 {[%clk 0:00:03.7]} 58. Rc7 {[%clk 0:00:25.3]}
58... Kd6 {[%clk 0:00:03.1]} 59. Rb7 {[%clk 0:00:25.6]} 59... Rf1 {[%clk
0:00:02.5]} 60. Rb6+ {[%clk 0:00:25.3]} 60... Ke7 {[%clk 0:00:02.3]} 61. Ke4
{[%clk 0:00:25.5]} 61... Re1+ {[%clk 0:00:02.3]} 62. Kd5 {[%clk 0:00:23.5]}
62... Rf1 {[%clk 0:00:03]} 63. Rb7 {[%clk 0:00:23.1]} 63... Rd1 {[%clk
0:00:02.7]} 64. c4 {[%clk 0:00:22.6]} 64... Kd8 {[%clk 0:00:02.8]} 65. c5 {[%clk
0:00:22.7]} 65... Bxf5 {[%clk 0:00:02.3]} 66. c6 {[%clk 0:00:23.2]} 66... Bc8
{[%clk 0:00:02.6]} 67. Rf7 {[%clk 0:00:21.4]} 67... f5 {[%clk 0:00:02.7]} 68.
Kc5 {[%clk 0:00:21.2]} 68... Rc1+ {[%clk 0:00:02.4]} 69. Kd6 {[%clk 0:00:21.2]}
69... Rd1 {[%clk 0:00:02.6]} 70. Rf8# {[%clk 0:00:21.2]} 1-0

[Event "*** SCC Grand Prix: Titled Tuesday Blitz"]
[Site "Chess.com"]
[Date "2020.06.02"]
[Round "10"]
[White "dopolian"]
[Black "Bayernbk"]
[Result "1-0"]
[WhiteElo "2352"]
[BlackElo "2469"]
[TimeControl "180+1"]
[EndTime "11:59:46 PDT"]
[Termination "dopolian won by resignation"]

1. e4 {[%clk 0:02:56.2]} 1... d5 {[%clk 0:02:59.6]} 2. exd5 {[%clk 0:02:56.1]}
2... Nf6 {[%clk 0:03:00.3]} 3. d4 {[%clk 0:02:55.7]} 3... Bg4 {[%clk 0:03:00.9]}
4. Bb5+ {[%clk 0:02:54.8]} 4... Bd7 {[%clk 0:03:00.3]} 5. Be2 {[%clk 0:02:49.8]}
5... Nxd5 {[%clk 0:03:00.1]} 6. c4 {[%clk 0:02:48.6]} 6... Nb6 {[%clk
0:03:00.2]} 7. Nf3 {[%clk 0:02:48.4]} 7... Bg4 {[%clk 0:02:59.4]} 8. O-O {[%clk
0:02:48]} 8... e6 {[%clk 0:02:58.7]} 9. Nc3 {[%clk 0:02:40.1]} 9... Nc6 {[%clk
0:02:58.8]} 10. d5 {[%clk 0:02:29.9]} 10... Bxf3 {[%clk 0:02:54.1]} 11. Bxf3
{[%clk 0:02:28.3]} 11... Ne5 {[%clk 0:02:54.5]} 12. dxe6 {[%clk 0:02:28.3]}
12... Qxd1 {[%clk 0:02:47.3]} 13. exf7+ {[%clk 0:02:27.5]} 13... Kxf7 {[%clk
0:02:48.2]} 14. Rxd1 {[%clk 0:02:26.2]} 14... Nxf3+ {[%clk 0:02:47.5]} 15. gxf3
{[%clk 0:02:23.1]} 15... Bc5 {[%clk 0:02:36]} 16. b3 {[%clk 0:02:19.1]} 16...
Rad8 {[%clk 0:02:35.9]} 17. Be3 {[%clk 0:02:18.7]} 17... Be7 {[%clk 0:02:21]}
18. Ne4 {[%clk 0:02:10.3]} 18... Nc8 {[%clk 0:02:10.7]} 19. Kf1 {[%clk
0:02:08.5]} 19... a6 {[%clk 0:02:10]} 20. Ke2 {[%clk 0:02:06.3]} 20... Ke6
{[%clk 0:02:10.4]} 21. Bf4 {[%clk 0:01:41.6]} 21... c6 {[%clk 0:01:59.7]} 22.
Bc7 {[%clk 0:01:37.8]} 22... Rxd1 {[%clk 0:01:58.4]} 23. Rxd1 {[%clk 0:01:38.7]}
23... Re8 {[%clk 0:01:56.8]} 24. Bf4 {[%clk 0:01:32.5]} 24... h6 {[%clk
0:01:47.4]} 25. Rd3 {[%clk 0:01:29.4]} 25... g5 {[%clk 0:01:33.1]} 26. Be3
{[%clk 0:01:25.5]} 26... Nd6 {[%clk 0:01:29.5]} 27. Nc5+ {[%clk 0:01:10.8]}
27... Kf5 {[%clk 0:01:29.3]} 28. a4 {[%clk 0:00:59.6]} 28... a5 {[%clk
0:01:28.6]} 29. h3 {[%clk 0:00:49.5]} 29... Rd8 {[%clk 0:01:13.7]} 30. Rd2
{[%clk 0:00:23.1]} 30... b5 {[%clk 0:01:01.7]} 31. cxb5 {[%clk 0:00:20.4]} 31...
cxb5 {[%clk 0:01:02.6]} 32. axb5 {[%clk 0:00:19.8]} 32... Nxb5 {[%clk
0:01:01.4]} 33. Rxd8 {[%clk 0:00:19.7]} 33... Bxd8 {[%clk 0:01:02.3]} 34. Nb7
{[%clk 0:00:19.9]} 34... Bc7 {[%clk 0:01:00.6]} 35. Nc5 {[%clk 0:00:19.3]} 35...
h5 {[%clk 0:00:49.2]} 36. Nd3 {[%clk 0:00:15.9]} 36... Nc3+ {[%clk 0:00:47.6]}
37. Kd2 {[%clk 0:00:14.8]} 37... Nd5 {[%clk 0:00:48.1]} 38. Nc5 {[%clk 0:00:12]}
38... Bb6 {[%clk 0:00:41.8]} 39. Ne4 {[%clk 0:00:10.7]} 39... Bd8 {[%clk
0:00:36.3]} 40. Nc3 {[%clk 0:00:06.6]} 40... Nb4 {[%clk 0:00:30.6]} 41. Ne2
{[%clk 0:00:06.9]} 41... Bf6 {[%clk 0:00:28.2]} 42. Ng3+ {[%clk 0:00:06.6]}
42... Kg6 {[%clk 0:00:28]} 43. Ne4 {[%clk 0:00:07.3]} 43... Be7 {[%clk
0:00:27.5]} 44. f4 {[%clk 0:00:07.2]} 44... g4 {[%clk 0:00:26.6]} 45. hxg4
{[%clk 0:00:07.4]} 45... hxg4 {[%clk 0:00:27.5]} 46. Ng3 {[%clk 0:00:07.9]}
46... Nd5 {[%clk 0:00:23.6]} 47. f5+ {[%clk 0:00:08.6]} 47... Kf6 {[%clk
0:00:22.9]} 48. Bd4+ {[%clk 0:00:09]} 48... Kg5 {[%clk 0:00:23.5]} 49. Kd3
{[%clk 0:00:04.8]} 49... Nb4+ {[%clk 0:00:06.4]} 50. Ke4 {[%clk 0:00:05.3]}
50... Nc6 {[%clk 0:00:06.1]} 51. Be3+ {[%clk 0:00:05.3]} 51... Kf6 {[%clk
0:00:06.6]} 52. Nh5+ {[%clk 0:00:04.6]} 52... Kf7 {[%clk 0:00:07.1]} 53. Nf4
{[%clk 0:00:04.8]} 53... Bd6 {[%clk 0:00:05.4]} 54. Ne6 {[%clk 0:00:05.7]} 54...
Kf6 {[%clk 0:00:02.6]} 55. Bg5+ {[%clk 0:00:05.1]} 55... Kf7 {[%clk 0:00:03.3]}
56. Be3 {[%clk 0:00:05.9]} 56... Kf6 {[%clk 0:00:03.4]} 57. Bg5+ {[%clk
0:00:05.4]} 57... Kf7 {[%clk 0:00:03.9]} 58. Bf4 {[%clk 0:00:06.3]} 58... Kf6
{[%clk 0:00:04.5]} 59. Bxd6 {[%clk 0:00:06.4]} 59... Na7 {[%clk 0:00:03.8]} 60.
Bf4 {[%clk 0:00:06.7]} 60... Nb5 {[%clk 0:00:03.7]} 61. Bg5+ {[%clk 0:00:07.6]}
61... Kf7 {[%clk 0:00:04.2]} 62. Be3 {[%clk 0:00:07.7]} 62... Nc3+ {[%clk
0:00:04.5]} 63. Kd3 {[%clk 0:00:07.4]} 63... Nd5 {[%clk 0:00:04.7]} 64. Kc4
{[%clk 0:00:07]} 64... g3 {[%clk 0:00:03.4]} 65. Kxd5 {[%clk 0:00:05.1]} 65...
g2 {[%clk 0:00:03.8]} 66. f4 {[%clk 0:00:05.3]} 66... Kf6 {[%clk 0:00:04.5]} 67.
Bg1 {[%clk 0:00:05.6]} 67... Kxf5 {[%clk 0:00:05.4]} 68. Nc5 {[%clk 0:00:04.3]}
68... Kxf4 {[%clk 0:00:05.6]} 69. Nb7 {[%clk 0:00:04.7]} 69... Kf3 {[%clk
0:00:04.3]} 70. Nxa5 {[%clk 0:00:04.3]} 70... Ke2 {[%clk 0:00:05.2]} 71. b4
{[%clk 0:00:04.8]} 71... Kd3 {[%clk 0:00:06.1]} 1-0